fUSD/lending_fUSD_20251229
["ID","MTS","AMOUNT","RATE_DAILY","PERIOD"]
[400041901,1767048640671,-168.0,0.00016616,2]
[400041903,1767048640680,-166.66,0.00016626,2]
[400041905,1767048640689,-168.0,0.00016642,2]
[400041907,1767048640698,-168.0,0.00016648,2]
[400041910,1767048640708,-3456.8022842,0.0001666,2]
[400041912,1767048640720,-152.20980143,0.00016697,2]
[400041914,1767048640731,-150.0,0.00016699,2]
[400041916,1767048640743,-1000.0,0.000167,2]
[400041918,1767048640753,-813.25,0.00016702,2]
[400041920,1767048640762,-165.38,0.00016712,2]
[400041922,1767048640772,-420.0,0.00016726,2]
[400041924,1767048640781,-168.0,0.0001673,2]
[400041926,1767048640790,-168.0,0.00016748,2]
[400041928,1767048640799,-168.0,0.00016764,2]
[400041930,1767048640809,-168.0,0.0001677,2]
[400041932,1767048640818,-2264.489,0.0001677,2]
[400041934,1767048640827,-168.0,0.00016772,2]
[400041936,1767048640840,-150.0,0.00016774,2]
[400041938,1767048640849,-150.93114477,0.000168,2]
[400041940,1767048640858,-652.17603402,0.000168,2]
[400041942,1767048640868,-6481.47369546,0.000168,2]
[400041944,1767048640877,-171.17241023,0.00016846,2]
[400041946,1767048640887,-168.0,0.00016875,2]
[400041948,1767048640897,-212.5052531,0.00016885,2]
[400041950,1767048640906,-797.1412,0.000169,2]
[400041952,1767048640917,-10000.0,0.000169,2]
[400041954,1767048640927,-163.39329536,0.000169,2]
[400041956,1767048640936,-921.25490695,0.000169,2]
[400041958,1767048640945,-164.84756872,0.000169,2]
[400041960,1767048640956,-1746.0438934,0.000169,2]
[400041962,1767048640965,-435.43769331,0.000169,2]
[400041965,1767048640976,-4385.0,0.000169,2]
[400041967,1767048640985,-652.17603394,0.00016922,2]
[400041968,1767048640994,-6481.47369544,0.00016922,2]
[400041969,1767048641004,-168.0,0.0001694,2]
[400041970,1767048641013,-500.0,0.00016973,2]
[400041971,1767048641022,-500.0,0.00016973,2]
[400041972,1767048641031,-500.0,0.00016973,2]
[400041973,1767048641040,-250.97805273,0.00016973,2]
[400041974,1767048641049,-500.0,0.00016973,2]
[400041975,1767048641058,-500.0,0.00016973,2]
[400041976,1767048641067,-500.0,0.00016973,2]
[400041977,1767048641077,-500.0,0.00016973,2]
[400041978,1767048641087,-500.0,0.00016973,2]
[400041980,1767048641096,-226.54246888,0.00016973,2]
[400041982,1767048641109,-500.0,0.00016973,2]
[400041984,1767048641119,-500.0,0.00016973,2]
[400041986,1767048641128,-500.0,0.00016973,2]
[400041988,1767048641137,-500.0,0.00016973,2]
[400041990,1767048641146,-500.0,0.00016973,2]
[400041992,1767048641155,-500.0,0.00016973,2]
[400041994,1767048641165,-559.28446362,0.00016973,2]
[400041996,1767048641174,-500.0,0.00016973,2]
[400041998,1767048641182,-500.0,0.00016973,2]
[400042000,1767048641191,-500.0,0.00016973,2]
[400042002,1767048641201,-500.0,0.00016973,2]
[400042004,1767048641210,-502.50249806,0.00016973,2]
[400042006,1767048641220,-500.0,0.00016973,2]
[400042008,1767048641230,-500.0,0.00016973,2]
[400042010,1767048641239,-500.0,0.00016973,2]
[400042012,1767048641249,-500.0,0.00016973,2]
[400042014,1767048641259,-500.0,0.00016973,2]
[400042016,1767048641269,-500.0,0.00016973,2]
[400042018,1767048641280,-207.3850141,0.00016973,2]
[400042020,1767048641289,-500.0,0.00016973,2]
[400042022,1767048641298,-500.0,0.00016973,2]
[400042024,1767048641306,-500.0,0.00016973,2]
[400042026,1767048641315,-150.0,0.00016973,2]
[400042028,1767048641324,-813.25,0.00016976,2]
[400042030,1767048641334,-574.12855637,0.00016976,2]
[400042032,1767048641343,-150.00000001,0.00016986,2]
[400042034,1767048641352,-150.0,0.00016986,2]
[400042036,1767048641361,-150.0,0.00016986,2]
[400042039,1767048641378,-150.0,0.00016986,2]
[400042041,1767048641389,-150.0,0.00016986,2]
[400042043,1767048641399,-150.0,0.00016986,2]
[400042046,1767048641409,-150.0,0.00016986,2]
[400042048,1767048641421,-31689.1852639,0.00016999,2]
[400042050,1767048641434,-3106.11808,0.00016999,2]
[400042053,1767048641446,-300.0,0.00016999,2]
[400042055,1767048641459,-666.0,0.00016999,2]
[400042057,1767048641470,-93684.6788593,0.00016999,2]
[400042059,1767048641481,-300.0,0.00016999,2]
[400042061,1767048641491,-39315.1604612,0.00016999,2]
[400042063,1767048641501,-155.5631609,0.00016999,2]
[400042065,1767048641511,-500.0,0.00016999,2]
[400042067,1767048641521,-330.47490261,0.00016999,2]
[400042069,1767048641531,-302.55203245,0.00016999,2]
[400042072,1767048641542,-199.55617605,0.00016999,2]
[400042074,1767048641553,-500.0,0.00016999,2]
[400042076,1767048641564,-243100.93443343,0.00017,2]
[400042078,1767048641575,-1377393.50918782,0.00017,2]
[400042400,1767048644547,-151.0,0.00016222,2]
[400042402,1767048644557,-1570.6,0.00017,2]
[400042409,1767048644610,-339055.33242184,0.00017,2]
[400042411,1767048644622,-57952.24271478,0.00017,2]
[400042417,1767048644673,-2207.96057256,0.00017,2]
[400042420,1767048644685,-1876.43942744,0.00017,2]
[400042524,1767048645756,-488.09639417,0.00017,2]
[400043389,1767049519743,174.92,7.803e-05,2]
[400043395,1767049832056,-150.0,0.00015543,2]
[400043396,1767049832066,-259.29,0.00015577,2]
[400043397,1767049832075,-65.49399393,0.00015584,2]
[400043398,1767049832087,-184.50600607,0.00015584,2]
[400043399,1767049832096,-195.0,0.00015591,2]
[400043400,1767049832105,-300.0,0.00015591,2]
[400043401,1767049832115,-174.92,0.00015605,2]
[400043402,1767049832124,-1428.93,0.00015635,2]
[400043403,1767049832134,-171.17241023,0.0001575,2]
[400043404,1767049832143,-2183.88440752,0.00015937,2]
[400043406,1767049832155,-1212.50559248,0.00015937,2]
[400043407,1767049832164,-300.0,0.00015997,2]
[400043408,1767049832174,-287.0,0.00015997,2]
[400043409,1767049832183,-11485.63440752,0.00015998,2]
[400043410,1767049832194,-4308.48920621,0.00015998,2]
[400043411,1767049832205,-398.2429221,0.00015998,2]
[400043412,1767049832220,-5187.80675912,0.00015998,2]
[400043427,1767049838008,-448.25051246,0.00015573,2]
[400043428,1767049838070,-1266.89948754,0.00015573,2]
[400043429,1767049838080,-6904.5046767,0.00015998,2]
[400043430,1767049838134,-3283.21352835,0.00015998,2]
[400043431,1767049838143,-300.0,0.00016097,2]
[400043432,1767049838153,-236.1517,0.00016098,2]
[400043433,1767049838163,-151.0,0.00016113,2]
[400043434,1767049838172,-151.0,0.00016113,2]
[400043435,1767049838182,-652.17603402,0.00016138,2]
[400043436,1767049838192,-226.46477515,0.00016138,2]
[400043604,1767049839978,-6255.00892031,0.00016138,2]
[400043606,1767049839988,-150.93114477,0.00016138,2]
[400043608,1767049839999,-1174.84828307,0.00016138,2]
[400043610,1767049840009,-152.20980143,0.00016149,2]
[400043612,1767049840019,-322.6107,0.00016149,2]
[400043614,1767049840030,-813.25,0.00016188,2]
[400043616,1767049840039,-214.8,0.00016188,2]
[400043619,1767049840049,-500.0,0.00016188,2]
[400043621,1767049840059,-500.0,0.00016188,2]
[400043623,1767049840068,-409.87007021,0.00016188,2]
[400043625,1767049840079,-90.12992979,0.00016188,2]
[400043627,1767049840088,-151.0,0.00016188,2]
[400043629,1767049840098,-500.0,0.00016188,2]
[400043631,1767049840108,-151.0,0.00016188,2]
[400043633,1767049840117,-500.0,0.00016188,2]
[400043635,1767049840126,-151.0,0.00016188,2]
[400043637,1767049840136,-553.64373807,0.00016188,2]
[400043639,1767049840146,-238.38323648,0.00016188,2]
[400043641,1767049840155,-109.55884847,0.00016188,2]
[400043643,1767049840167,-41.44115153,0.00016188,2]
[400043645,1767049840176,-151.0,0.00016188,2]
[400043647,1767049840185,-151.0,0.00016188,2]
[400043649,1767049840195,-151.0,0.00016188,2]
[400043651,1767049840204,-151.0,0.00016188,2]
[400043653,1767049840214,-151.0,0.00016188,2]
[400043655,1767049840224,-250.0,0.00016188,2]
[400043657,1767049840233,-250.0,0.00016188,2]
[400043659,1767049840243,-500.0,0.00016188,2]
[400043661,1767049840254,-250.0,0.00016188,2]
[400043663,1767049840264,-500.0,0.00016188,2]
[400043665,1767049840274,-250.0,0.00016188,2]
[400043667,1767049840287,-382.69762182,0.00016188,2]
[400043669,1767049840296,-250.0,0.00016188,2]
[400043671,1767049840305,-620.0,0.00016188,2]
[400043673,1767049840315,-1000.0,0.00016188,2]
[400043675,1767049840325,-1000.0,0.00016188,2]
[400043677,1767049840335,-1000.0,0.00016188,2]
[400043679,1767049840345,-1000.0,0.00016188,2]
[400043682,1767049840356,-1000.0,0.00016188,2]
[400043684,1767049840366,-1000.0,0.00016188,2]
[400043686,1767049840375,-846.55569035,0.00016188,2]
[400043688,1767049840385,-2264.489,0.00016197,2]
[400043690,1767049840394,-797.1412,0.00016238,2]
[400043692,1767049840403,-235.76832595,0.00016438,2]
[400043694,1767049840413,-813.25,0.00016462,2]
[400043696,1767049840422,-168.0,0.00016497,2]
[400043698,1767049840432,-150.0,0.00016501,2]
[400043700,1767049840441,-168.0,0.00016541,2]
[400043702,1767049840450,-3456.8022842,0.0001666,2]
[400043704,1767049840459,-150.0,0.00016699,2]
[400043706,1767049840469,-168.0,0.00016706,2]
[400043708,1767049840479,-168.0,0.00016716,2]
[400043710,1767049840488,-813.25,0.00016736,2]
[400043713,1767049840497,-574.12855637,0.00016736,2]
[400043716,1767049840507,-168.0,0.00016743,2]
[400043718,1767049840517,-168.0,0.00016806,2]
[400043720,1767049840526,-212.5052531,0.00016809,2]
[400043722,1767049840536,-163.39329536,0.000169,2]
[400043725,1767049840546,-168.0,0.00016961,2]
[400043727,1767049840556,-250.97805273,0.00016973,2]
[400043729,1767049840565,-500.0,0.00016973,2]
[400043731,1767049840574,-500.0,0.00016973,2]
[400043733,1767049840584,-500.0,0.00016973,2]
[400043735,1767049840594,-500.0,0.00016973,2]
[400043737,1767049840605,-500.0,0.00016973,2]
[400043739,1767049840614,-500.0,0.00016973,2]
[400043741,1767049840623,-500.0,0.00016973,2]
[400043743,1767049840632,-226.54246888,0.00016973,2]
[400043745,1767049840642,-500.0,0.00016973,2]
[400043748,1767049840652,-500.0,0.00016973,2]
[400043749,1767049840662,-500.0,0.00016973,2]
[400043752,1767049840671,-500.0,0.00016973,2]
[400043754,1767049840681,-500.0,0.00016973,2]
[400043755,1767049840690,-500.0,0.00016973,2]
[400043757,1767049840699,-500.0,0.00016973,2]
[400043760,1767049840709,-500.0,0.00016973,2]
[400043762,1767049840718,-500.0,0.00016973,2]
[400043764,1767049840727,-559.28446362,0.00016973,2]
[400043789,1767049840970,-500.0,0.00016973,2]
[400043791,1767049840980,-500.0,0.00016973,2]
[400043794,1767049840991,-500.0,0.00016973,2]
[400043796,1767049841001,-500.0,0.00016973,2]
[400043798,1767049841010,-502.50249806,0.00016973,2]
[400043800,1767049841020,-500.0,0.00016973,2]
[400043802,1767049841031,-500.0,0.00016973,2]
[400043804,1767049841040,-500.0,0.00016973,2]
[400043806,1767049841050,-500.0,0.00016973,2]
[400043808,1767049841059,-207.3850141,0.00016973,2]
[400043810,1767049841068,-500.0,0.00016973,2]
[400043812,1767049841079,-500.0,0.00016973,2]
[400043814,1767049841092,-500.0,0.00016973,2]
[400043815,1767049841102,-500.0,0.00016999,2]
[400043816,1767049841111,-500.0,0.00016999,2]
[400043818,1767049841120,-500.0,0.00016999,2]
[400043820,1767049841136,-500.0,0.00016999,2]
[400043822,1767049841156,-500.0,0.00016999,2]
[400043824,1767049841165,-395.05284291,0.00016999,2]
[400043826,1767049841177,-505.14337693,0.00016999,2]
[400043828,1767049841187,-500.0,0.00016999,2]
[400043830,1767049841198,-500.0,0.00016999,2]
[400043832,1767049841209,-500.0,0.00016999,2]
[400043834,1767049841220,-500.0,0.00016999,2]
[400043836,1767049841230,-4383.0,0.00017,2]
[400043838,1767049841241,-39376.0747898,0.00017,2]
[400043840,1767049841257,-279882.24900986,0.00017,2]
[400043843,1767049841270,-3307.21390257,0.00017,2]
[400043845,1767049841282,-292.0,0.00017,2]
[400043847,1767049841295,-5225.753394,0.00017,2]
[400043850,1767049841313,-252.636388,0.00017,2]
[400043852,1767049841324,-600.719909,0.00017,2]
[400043855,1767049841338,-1330.08239876,0.00017,2]
[400043857,1767049841349,-4669.82032168,0.00017,2]
[400043859,1767049841362,-765.44534152,0.00017,2]
[400043861,1767049841373,-2333.0,0.00017,2]
[400043863,1767049841384,-15336.11917251,0.00017,2]
[400043865,1767049841395,-776.90309751,0.00017,2]
[400043867,1767049841406,-3017.26,0.00017,2]
[400043870,1767049841417,-1985.97220089,0.00017,2]
[400043872,1767049841428,-50644.77740974,0.00017,2]
[400043874,1767049841439,-1760.88668995,0.00017,2]
[400043876,1767049841450,-293.15690041,0.00017,2]
[400043878,1767049841461,-783151.60026132,0.00017,2]
[400043880,1767049841470,-151.0,0.00017,2]
[400043882,1767049841479,-237.34355763,0.00017,2]
[400043884,1767049841488,-1500.0,0.00017,2]
[400043886,1767049841499,-250.0,0.00017,2]
[400043888,1767049841508,-129501.4193008,0.00017,2]
[400043890,1767049841519,-3106.11808,0.00017,2]
[400043892,1767049841528,-1000.0,0.00017,2]
[400043894,1767049841537,-1000.0,0.00017,2]
[400043896,1767049841547,-200.0,0.00017,2]
[400043898,1767049841556,-6794.255292,0.00017,2]
[400043900,1767049841565,-200.0,0.00017,2]
[400043902,1767049841575,-813.25,0.0001701,2]
[400043904,1767049841584,-168.0,0.00017052,2]
[400043906,1767049841594,-168.0,0.00017077,2]
[400043908,1767049841604,-167.92,0.00017084,2]
[400043910,1767049841614,-168.0,0.00017099,2]
[400043912,1767049841624,-168.0,0.00017112,2]
[400043914,1767049841633,-250.0,0.00017135,2]
[400043916,1767049841643,-354.35076502,0.00017135,2]
[400043918,1767049841653,-195.0,0.00017135,2]
[400043920,1767049841662,-300.0,0.00017135,2]
[400043922,1767049841673,-250.0,0.00017135,2]
[400043924,1767049841682,-730.0,0.00017164,2]
[400043926,1767049841692,-195.0,0.00017166,2]
[400043928,1767049841702,-193.0,0.00017166,2]
[400043930,1767049841712,-200.0,0.0001717,2]
[400043932,1767049841722,-168.0,0.00017185,2]
[400043934,1767049841731,-168.0,0.00017217,2]
[400043936,1767049841740,-168.0,0.00017239,2]
[400043938,1767049841750,-813.25,0.00017284,2]
[400043940,1767049841760,-595.37131296,0.00017284,2]
[400043942,1767049841769,-150.0,0.00017285,2]
[400043944,1767049841781,-150.0,0.00017285,2]
[400043946,1767049841791,-150.0,0.00017285,2]
[400043948,1767049841800,-150.0,0.00017285,2]
[400043950,1767049841810,-150.0,0.00017285,2]
[400043952,1767049841819,-150.0,0.00017285,2]
[400043954,1767049841828,-150.0,0.00017285,2]
[400043956,1767049841838,-150.0,0.00017285,2]
[400043958,1767049841847,-185.68075305,0.00017285,2]
[400043960,1767049841856,-150.0,0.00017285,2]
[400043962,1767049841866,-150.0,0.00017285,2]
[400043964,1767049841876,-150.0,0.00017285,2]
[400043966,1767049841886,-150.0,0.00017285,2]
[400043968,1767049841895,-200.0,0.00017342,2]
[400043970,1767049841904,-730.0,0.00017386,2]
[400043972,1767049841913,-168.0,0.00017441,2]
[400043974,1767049841922,-730.0,0.00017465,2]
[400043976,1767049841932,-420.0,0.0001749,2]
[400043978,1767049841941,-200.0,0.00017515,2]
[400043980,1767049841955,-272.46360485,0.00017518,2]
[400043982,1767049841966,-665.6820002,0.00017521,2]
[400043984,1767049841976,-500.0,0.00017521,2]
[400043986,1767049841987,-295.41812437,0.00017521,2]
[400043988,1767049841997,-500.0,0.00017521,2]
[400043990,1767049842008,-358.02143385,0.00017521,2]
[400043992,1767049842018,-500.0,0.00017521,2]
[400043994,1767049842029,-1000.0,0.00017521,2]
[400043996,1767049842038,-500.0,0.00017521,2]
[400043998,1767049842048,-711.71097103,0.00017521,2]
[400044000,1767049842057,-1000.0,0.00017521,2]
[400044002,1767049842066,-500.0,0.00017521,2]
[400044004,1767049842076,-175.89091811,0.00017521,2]
[400044006,1767049842085,-500.0,0.00017521,2]
[400044008,1767049842094,-500.0,0.00017521,2]
[400044010,1767049842103,-500.0,0.00017521,2]
[400044012,1767049842113,-500.0,0.00017521,2]
[400044014,1767049842122,-500.0,0.00017521,2]
[400044016,1767049842131,-150.40009762,0.00017521,2]
[400044018,1767049842141,-168.0,0.00017537,2]
[400044020,1767049842150,-642.94,0.00017557,2]
[400044022,1767049842159,-813.30238286,0.00017558,2]
[400044024,1767049842168,-200.0,0.0001769,2]
[400044026,1767049842178,-849.0,0.000177,2]
[400044028,1767049842187,-976.0,0.000177,2]
[400044030,1767049842197,-305.0,0.000177,2]
[400044032,1767049842206,-167.92,0.00017712,2]
[400044034,1767049842215,-150.0,0.00017765,2]
[400044036,1767049842225,-150.0,0.00017765,2]
[400044038,1767049842234,-150.0,0.00017765,2]
[400044040,1767049842242,-168.0,0.00017823,2]
[400044042,1767049842252,-617.40005154,0.00017832,2]
[400044044,1767049842262,-3584.53505189,0.000179,2]
[400044046,1767049842271,-10000.0,0.000179,2]
[400044048,1767049842281,-168.0,0.00017917,2]
[400044050,1767049842290,-730.0,0.0001793,2]
[400044052,1767049842299,-490.62,0.0001799,2]
[400044054,1767049842309,-148097.81842165,0.00017998,2]
[400044056,1767049842318,-330.47490261,0.00017999,2]
[400044058,1767049842327,-500.0,0.00017999,2]
[400044060,1767049842337,-302.55203245,0.00017999,2]
[400044061,1767049842347,-500.0,0.00017999,2]
[400044062,1767049842356,-199.55617605,0.00017999,2]
[400044063,1767049842366,-395376.06063863,0.00018,2]
[400044064,1767049842375,-151.0,0.00018,2]
[400044065,1767049842386,-151.0,0.00018,2]
[400044066,1767049842395,-151.0,0.00018,2]
[400044067,1767049842404,-151.0,0.00018,2]
[400044068,1767049842413,-151.0,0.00018,2]
[400044069,1767049842422,-151.0,0.00018,2]
[400044070,1767049842432,-151.0,0.00018,2]
[400044071,1767049842440,-151.0,0.00018,2]
[400044072,1767049842449,-177.98745,0.00018,2]
[400044073,1767049842457,-151.0,0.00018,2]
[400044074,1767049842466,-151.0,0.00018,2]
[400044076,1767049842475,-151.0,0.00018,2]
[400044078,1767049842485,-151.0,0.00018,2]
[400044080,1767049842494,-151.0,0.00018,2]
[400044082,1767049842506,-151.0,0.00018,2]
[400044084,1767049842516,-151.0,0.00018,2]
[400044086,1767049842525,-279.082884,0.00018,2]
[400044088,1767049842535,-151.0,0.00018,2]
[400044090,1767049842544,-151.0,0.00018,2]
[400044092,1767049842553,-422.845317,0.00018,2]
[400044094,1767049842566,-422.845317,0.00018,2]
[400044096,1767049842575,-422.845317,0.00018,2]
[400044098,1767049842584,-422.845317,0.00018,2]
[400044100,1767049842595,-512.038497,0.00018,2]
[400044103,1767049842604,-512.038497,0.00018,2]
[400044104,1767049842614,-512.038497,0.00018,2]
[400044107,1767049842623,-512.038497,0.00018,2]
[400044108,1767049842632,-222.04159557,0.00018068,2]
[400044111,1767049842641,-1000.0,0.00018082,2]
[400044112,1767049842650,-730.0,0.00018098,2]
[400044114,1767049842660,-150.0,0.00018245,2]
[400044116,1767049842669,-150.0,0.00018245,2]
[400044118,1767049842678,-150.0,0.00018245,2]
[400044121,1767049842688,-150.0,0.00018245,2]
[400044123,1767049842697,-150.0,0.00018245,2]
[400044125,1767049842707,-640.24385345,0.0001838,2]
[400044127,1767049842716,-1000.0,0.0001858,2]
[400044128,1767049842726,-150.0,0.00018725,2]
[400044131,1767049842736,-150.0,0.00018725,2]
[400044133,1767049842745,-150.0,0.00018725,2]
[400044135,1767049842755,-1000.0,0.0001876,2]
[400044137,1767049842765,-153.44,0.000188,2]
[400044139,1767049842774,-263.22073191,0.00018926,2]
[400044141,1767049842784,-663.93287602,0.00018928,2]
[400044143,1767049842793,-203.06557908,0.00019,2]
[400044145,1767049842802,-300.0,0.00019,2]
[400044147,1767049842812,-4398.38249145,0.00019,2]
[400044149,1767049842821,-652.17603394,0.00019098,2]
[400044151,1767049842830,-6481.47369544,0.00019098,2]
[400044153,1767049842839,-435.43769331,0.00019108,2]
[400044155,1767049842848,-587.0,0.00019123,2]
[400044157,1767049842857,-28895.672428,0.00019157,2]
[400044159,1767049842867,-1516.0032714,0.00019157,2]
[400044161,1767049842876,-151.0,0.00019178,2]
[400044163,1767049842886,-150.0,0.00019205,4]
[400044165,1767049842896,-150.0,0.00019205,4]
[400044167,1767049842905,-150.00000001,0.00019205,4]
[400044169,1767049842914,-150.0,0.00019205,4]
[400044171,1767049842923,-150.0,0.00019205,4]
[400044173,1767049842932,-150.0,0.00019205,4]
[400044175,1767049842942,-150.0,0.00019205,4]
[400044177,1767049842954,-150.0,0.00019205,4]
[400044179,1767049842964,-8772.3980499,0.00019208,2]
[400044181,1767049842973,-1000.0,0.00019438,2]
[400044183,1767049842983,-688.49839244,0.00019476,2]
[400044185,1767049842993,-6447.4960164,0.00019639,2]
[400044187,1767049843003,-338.2660527,0.00019639,2]
[400044189,1767049843012,-1957.3865817,0.00019701,2]
[400044191,1767049843023,-1174.84828301,0.00019944,2]
[400044193,1767049843033,-490.62,0.00019989,2]
[400044195,1767049843043,-713.97283296,0.00020024,2]
[400044197,1767049843053,-1000.0,0.00020116,2]
[400044199,1767049843062,-226.46,0.00020187,2]
[400044201,1767049843072,-1000.0,0.00020438,2]
[400044203,1767049843082,-740.38982778,0.00020572,2]
[400044205,1767049843091,-576.965,0.00020676,2]
[400044207,1767049843101,-6539.0,0.00020676,2]
[400044209,1767049843110,-4810.0,0.00020676,2]
[400044211,1767049843120,-2000.0,0.000207,2]
[400044213,1767049843130,-1000.0,0.000207,2]
[400044215,1767049843140,-1000.0,0.00020795,2]
[400044217,1767049843150,-193.0,0.00020908,2]
[400044219,1767049843159,-767.7842514,0.0002112,2]
[400044221,1767049843169,-150.0,0.00021405,2]
[400044223,1767049843179,-3461.0,0.00021405,2]
[400044225,1767049843189,-576.25570235,0.00021668,2]
[400044227,1767049843199,-4272.57,0.00021789,2]
[400044229,1767049843209,-5000.0,0.00021918,2]
[400044231,1767049843218,-490.62,0.00021988,2]
[400044234,1767049843228,-652.17603394,0.00022059,2]
[400044236,1767049843237,-6481.47369544,0.00022059,2]
[400044238,1767049843246,-1000.0,0.00022296,2]
[400044240,1767049843256,-194.09,0.000226,7]
[400044242,1767049843265,-564.0,0.00023676,2]
[400044244,1767049843274,-500.0,0.00023726,2]
[400044246,1767049843284,-1174.84828301,0.00023751,2]
[400044248,1767049843293,-435.43769329,0.00023843,2]
[400044250,1767049843302,-490.62,0.00023987,2]
[400044251,1767049843311,-16650.70081165,0.00024,2]
[400044254,1767049843321,-1018.46525943,0.00024,2]
[400044256,1767049843330,-3600.0,0.00024,2]
[400044258,1767049843341,-320.3860841,0.00024,2]
[400044260,1767049843351,-2000.0,0.000244,2]
[400044262,1767049843362,-223.95,0.00024402,2]
[400044264,1767049843372,-150.0,0.00024405,2]
[400044266,1767049843381,-1000.0,0.00024658,2]
[400044268,1767049843390,-151.0,0.00024658,2]
[400044270,1767049843400,-263.10311006,0.000248,3]
[400044272,1767049843409,-277.8,0.00025,2]
[400044274,1767049843418,-652.17603394,0.00025019,2]
[400044276,1767049843427,-6481.47369544,0.00025019,2]
[400044278,1767049843436,-150.93114477,0.00025019,2]
[400044280,1767049843446,-226.46,0.00026676,2]
[400044282,1767049843455,-564.0,0.00026676,2]
[400044284,1767049843464,-150.0,0.00027369,2]
[400044286,1767049843473,-500.0,0.00027397,20]
[400044288,1767049843482,-160.85,0.00027397,30]
[400044290,1767049843492,-153.0,0.00027397,2]
[400044292,1767049843503,-153.0,0.00027397,2]
[400044294,1767049843513,-153.0,0.00027397,2]
[400044296,1767049843523,-153.0,0.00027397,2]
[400044298,1767049843532,-153.0,0.00027397,2]
[400044300,1767049843541,-153.0,0.00027397,2]
[400044302,1767049843551,-153.0,0.00027397,2]
[400044304,1767049843560,-164.0,0.00027397,2]
[400044306,1767049843570,-153.0,0.00027397,2]
[400044308,1767049843580,-153.0,0.00027397,2]
[400044310,1767049843589,-153.0,0.00027397,2]
[400044312,1767049843598,-153.0,0.00027397,2]
[400044314,1767049843608,-153.0,0.00027397,2]
[400044316,1767049843617,-235.0,0.00027397,2]
[400044318,1767049843626,-153.0,0.00027397,2]
[400044321,1767049843636,-153.0,0.00027397,2]
[400044322,1767049843646,-153.0,0.00027397,2]
[400044325,1767049843656,-153.0,0.00027397,2]
[400044327,1767049843665,-153.0,0.00027397,2]
[400044329,1767049843675,-1174.84828301,0.00027557,2]
[400044331,1767049843684,-7361.15,0.00027671,2]
[400044333,1767049843695,-652.17603394,0.0002798,2]
[400044335,1767049843705,-6481.47369544,0.0002798,2]
[400044337,1767049843715,-2000.0,0.000281,2]
[400044338,1767049843725,-159.92,0.00028558,2]
[400044340,1767049843734,-435.43769329,0.00028578,2]
[400044343,1767049843744,-288.95,0.00028787,2]
[400044345,1767049843754,-7040.59966886,0.0003013,2]
[400044347,1767049843763,-340.6,0.00030137,3]
[400044349,1767049843773,-345.4,0.00030137,7]
[400044350,1767049843784,-379.8,0.00030137,2]
[400044352,1767049843794,-338.4,0.00030137,4]
[400044354,1767049843803,-340.8,0.00030137,5]
[400044356,1767049843815,-352.4,0.00030137,3]
[400044359,1767049843824,-323.2,0.00030137,3]
[400044360,1767049843834,-459.8,0.00030137,3]
[400044362,1767049843843,-415.8,0.00030137,3]
[400044364,1767049843852,-439.4,0.00030137,4]
[400044366,1767049843862,-389.6,0.00030137,4]
[400044368,1767049843871,-471.6,0.00030137,5]